lending/lending_fUSD_20260411
["ID","MTS","AMOUNT","RATE_DAILY","PERIOD"]
[420282043,1775907118104,-2000.0,0.00023562,2]
[420282044,1775907118114,-450.0,0.00023562,2]
[420282045,1775907118136,-950.0,0.00023562,2]
[420282046,1775907118149,-1369.59,0.0002368,3]
[420282047,1775907118163,-506.0,0.00023687,11]
[420282048,1775907118180,-3727.18978717,0.000237,30]
[420282049,1775907118197,-693.3919763,0.00023785,2]
[420282050,1775907118210,-2000.0,0.000238,2]
[420282051,1775907118241,-2000.0,0.00023836,2]
[420282052,1775907118258,-1466.37,0.00023936,2]
[420282053,1775907118284,-150.0,0.00024,2]
[420282054,1775907118298,-159.0,0.00024,7]
[420282055,1775907118334,-1031.476193,0.00024,2]
[420282056,1775907118364,-3600.0,0.00024,2]
[420282057,1775907118388,-1247.10276105,0.00024,2]
[420282058,1775907118405,-526.0,0.00024,5]
[420282059,1775907118426,-10069.57671825,0.00024,2]
[420282060,1775907118448,-1819.96828797,0.00024,55]
[420282061,1775907118475,-552.0,0.00024,2]
[420282062,1775907118492,-1376.0,0.00024,2]
[420282063,1775907118511,-6874.0,0.00024,2]
[420282064,1775907118525,-8781.0,0.00024,2]
[420282065,1775907118541,-629.0,0.00024,2]
[420282066,1775907118563,-1164.0,0.00024,2]
[420282067,1775907118580,-4043.0,0.00024,2]
[420282068,1775907118614,-1652.0,0.00024,2]
[420282069,1775907118627,-1519.0,0.00024,2]
[420282070,1775907118649,-1048.0,0.00024,2]
[420282071,1775907118664,-2000.0,0.0002411,2]
[420282072,1775907118674,-550.0,0.0002411,2]
[420282073,1775907118702,-1050.0,0.0002411,2]
[420282074,1775907118711,-3732.64595948,0.0002421,2]
[420282075,1775907118722,-10724.70228191,0.0002429,7]
[420282076,1775907118743,-150.0,0.00024314,2]
[420282077,1775907118755,-2500.0,0.00024314,2]
[420282078,1775907118765,-650.0,0.00024314,2]
[420282079,1775907118792,-300.0,0.00024314,2]
[420282080,1775907118802,-1650.0,0.00024314,2]
[420282081,1775907118818,-450.0,0.00024314,2]
[420282082,1775907118845,-501.44360909,0.00024371,2]
[420282083,1775907118855,-2000.0,0.00024384,2]
[420282084,1775907118890,-5010.0,0.00024463,7]
[420282085,1775907118905,-1000.0,0.000245,2]
[420282086,1775907118926,-474.25261234,0.0002463,2]
[420282087,1775907118940,-164.4,0.0002463,2]
[420282088,1775907118950,-241.42105263,0.0002463,2]
[420282089,1775907118972,-150.05263158,0.0002463,2]
[420282090,1775907118982,-194.10526316,0.0002463,2]
[420282091,1775907118991,-207.68421053,0.0002463,2]
[420282092,1775907119007,-200.57894737,0.0002463,2]
[420282093,1775907119020,-156.94736842,0.0002463,2]
[420282094,1775907119030,-243.57894737,0.0002463,2]
[420282095,1775907119039,-151.31578947,0.0002463,2]
[420282096,1775907119054,-2185.5,0.0002463,2]
[420282097,1775907119068,-2185.5,0.0002463,2]
[420282098,1775907119078,-1844.0,0.0002463,2]
[420282099,1775907119091,-1844.0,0.0002463,2]
[420282100,1775907119102,-1422.0,0.0002463,2]
[420282101,1775907119116,-1422.0,0.0002463,2]
[420282102,1775907119126,-1279.0,0.0002463,2]
[420282103,1775907119138,-1279.0,0.0002463,2]
[420282104,1775907119151,-1786.5,0.0002463,2]
[420282105,1775907119165,-1786.5,0.0002463,2]
[420282106,1775907119178,-572.91665234,0.0002463,2]
[420282107,1775907119193,-2256.0,0.0002463,30]
[420282108,1775907119204,-1504.00555439,0.0002463,30]
[420282109,1775907119220,-1504.00555439,0.0002463,30]
[420282110,1775907119233,-1925.33333334,0.0002463,30]
[420282111,1775907119243,-641.77777778,0.0002463,30]
[420282112,1775907119263,-169.88189814,0.0002465,2]
[420282113,1775907119277,-2000.0,0.00024658,2]
[420282114,1775907119287,-2000.0,0.00024658,27]
[420282115,1775907119311,-650.0,0.00024658,2]
[420282116,1775907119325,-1045.54282987,0.00024658,2]
[420282117,1775907119341,-881.24,0.00024658,2]
[420282118,1775907119365,-1000.0,0.00024658,2]
[420282119,1775907119374,-151.0,0.00024658,2]
[420282120,1775907119411,-151.0,0.00024658,2]
[420282121,1775907119423,-151.0,0.00024658,2]
[420282122,1775907119460,-151.0,0.00024658,2]
[420282123,1775907119480,-171.304072,0.00024658,2]
[420282124,1775907119530,-239.62423104,0.00024658,2]
[420282125,1775907119592,-245.203149,0.00024658,2]
[420282126,1775907119750,-245.203149,0.00024658,2]
[420282127,1775907119866,-245.203149,0.00024658,2]
[420282128,1775907119897,-245.203149,0.00024658,2]
[420282129,1775907119910,-245.203149,0.00024658,2]
[420282130,1775907119925,-245.203149,0.00024658,2]
[420282131,1775907119938,-245.203149,0.00024658,2]
[420282132,1775907119950,-245.203149,0.00024658,2]
[420282133,1775907119967,-245.203149,0.00024658,2]
[420282134,1775907119977,-245.203149,0.00024658,2]
[420282135,1775907119990,-245.203149,0.00024658,2]
[420282136,1775907120009,-245.203149,0.00024658,2]
[420282137,1775907120021,-245.203149,0.00024658,2]
[420282138,1775907120046,-245.203149,0.00024658,2]
[420282139,1775907120064,-245.203149,0.00024658,2]
[420282140,1775907120095,-245.203149,0.00024658,2]
[420282141,1775907120111,-245.203149,0.00024658,2]
[420282142,1775907120142,-245.203149,0.00024658,2]
[420282143,1775907120166,-245.203149,0.00024658,2]
[420282144,1775907120194,-245.203142,0.00024658,2]
[420282145,1775907120215,-238.40198,0.00024658,2]
[420282146,1775907120238,-238.40198,0.00024658,2]
[420282147,1775907120257,-238.40198,0.00024658,2]
[420282148,1775907120275,-238.40198,0.00024658,2]
[420282149,1775907120288,-238.40198,0.00024658,2]
[420282150,1775907120312,-238.40198,0.00024658,2]
[420282151,1775907120322,-238.40198,0.00024658,2]
[420282152,1775907120341,-238.40198,0.00024658,2]
[420282153,1775907120358,-238.40198,0.00024658,2]
[420282154,1775907120368,-238.40198,0.00024658,2]
[420282155,1775907120387,-238.40198,0.00024658,2]
[420282156,1775907120399,-238.40198,0.00024658,2]
[420282157,1775907120409,-238.40198,0.00024658,2]
[420282158,1775907120423,-238.40198,0.00024658,2]
[420282159,1775907120441,-238.40198,0.00024658,2]
[420282160,1775907120451,-238.40198,0.00024658,2]
[420282161,1775907120464,-238.40198,0.00024658,2]
[420282162,1775907120483,-238.40198,0.00024658,2]
[420282163,1775907120493,-238.40198,0.00024658,2]
[420282164,1775907120502,-238.401972,0.00024658,2]
[420282165,1775907120523,-150.0,0.00024658,2]
[420282166,1775907120532,-164.95,0.00024658,2]
[420282167,1775907120542,-155.73,0.00024658,30]
[420282168,1775907120562,-825.0,0.00024777,60]
[420282169,1775907120573,-314.28159982,0.00024791,60]
[420282170,1775907120583,-2193.86,0.00024822,2]
[420282171,1775907120596,-150.0,0.00024834,2]
[420282172,1775907120612,-157.11065417,0.00024899,30]
[420282173,1775907120622,-171.85401061,0.000249,7]
[420282174,1775907120632,-829.5491,0.000249,2]
[420282175,1775907120643,-614103.277495,0.000249,2]
[420282176,1775907120656,-2000.0,0.00024932,2]
[420282177,1775907120666,-2472.0,0.00024994,2]
[420282178,1775907120676,-506.0,0.00024996,12]
[420282179,1775907120685,-1122.76379422,0.00025,2]
[420282180,1775907120698,-209.1372582,0.00025,2]
[420282181,1775907120707,-1799.0366628,0.00025,2]
[420282182,1775907120717,-2000.0,0.00025,2]
[420282183,1775907120726,-540.0,0.00025,2]
[420282184,1775907120736,-615.6108964,0.00025,2]
[420282185,1775907120745,-3067.55143082,0.00025,2]
[420282186,1775907120755,-7182.03566753,0.00025,2]
[420282187,1775907120764,-2217.4326153,0.00025,2]
[420282188,1775907120773,-168.61176705,0.00025,2]
[420282189,1775907120784,-3824.28643757,0.00025,2]
[420282190,1775907120793,-150.0,0.00025,2]
[420282191,1775907120803,-1340.40120201,0.00025,4]
[420282192,1775907120812,-687.97,0.00025,5]
[420282193,1775907120822,-3014.64,0.00025,7]
[420282194,1775907120831,-151.0,0.00025,2]
[420282195,1775907120840,-5000.0,0.00025,5]
[420282196,1775907120850,-1000.0,0.00025,2]
[420282197,1775907120861,-114482.92234517,0.00025,7]
[420282198,1775907120871,-5000.0,0.00025,15]
[420282199,1775907120880,-2163.0,0.00025,2]
[420282200,1775907120890,-500.0,0.00025,5]
[420282201,1775907120904,-14193.26434043,0.00025,4]
[420282202,1775907120913,-734.12618447,0.00025,7]
[420282203,1775907120923,-150.0,0.00025,2]
[420282204,1775907120932,-150.0,0.00025,2]
[420282205,1775907120946,-150.0,0.00025,2]
[420282206,1775907120956,-150.0,0.00025,2]
[420282207,1775907120965,-150.0,0.00025,2]
[420282208,1775907120974,-150.0,0.00025,2]
[420282209,1775907120984,-150.0,0.00025,2]
[420282210,1775907120997,-150.0,0.00025,2]
[420282211,1775907121007,-150.0,0.00025,2]
[420282212,1775907121016,-150.0,0.00025,2]
[420282213,1775907121026,-150.0,0.00025,2]
[420282214,1775907121040,-150.0,0.00025,2]
[420282215,1775907121051,-150.0,0.00025,2]
[420282216,1775907121060,-165.245,0.00025,2]
[420282217,1775907121070,-2604.26524687,0.00025,30]
[420282218,1775907121079,-286.46699461,0.00025,60]
[420282219,1775907121089,-1631.7418747,0.00025,30]
[420282220,1775907121099,-800.0,0.00025,120]
[420282221,1775907121108,-150.0,0.00025,120]
[420282222,1775907121117,-1000.0,0.00025,120]
[420282223,1775907121127,-622.64203606,0.00025,5]
[420282224,1775907121138,-203.79,0.00025,2]
[420282225,1775907121148,-1395.46541755,0.00025,2]
[420282226,1775907121158,-6891.62892163,0.00025,2]
[420282227,1775907121170,-8781.11818555,0.00025,2]
[420282228,1775907121181,-631.0,0.00025,2]
[420282229,1775907121191,-1165.35725012,0.00025,2]
[420282230,1775907121200,-4053.68709112,0.00025,2]
[420282231,1775907121210,-1652.68463616,0.00025,2]
[420282232,1775907121222,-1521.13788593,0.00025,2]
[420282233,1775907121232,-550.0,0.00025,2]
[420282234,1775907121242,-1048.0,0.00025,2]
[420282235,1775907121253,-2000.0,0.00025205,2]
[420282236,1775907121266,-750.0,0.00025205,2]
[420282237,1775907121275,-1500.0,0.00025207,7]
[420282238,1775907121285,-2600.0,0.00025207,7]
[420282239,1775907121296,-49916.68247399,0.0002539,2]
[420282240,1775907121309,-2000.0,0.00025479,2]
[420282241,1775907121319,-234.0,0.00025548,2]
[420282242,1775907121329,-2000.0,0.00025753,2]
[420282243,1775907121342,-850.0,0.00025753,2]
[420282244,1775907121470,-1985.47476737,0.00025753,15]
[420282245,1775907121488,-151.0,0.000258,4]
[420282246,1775907121504,-1500.0,0.00025863,2]
[420282247,1775907121513,-1500.0,0.00025863,2]
[420282248,1775907121524,-150.0,0.0002589,2]
[420282249,1775907121538,-1229.48263297,0.00025909,2]
[420282250,1775907121551,-605.46823923,0.0002599,2]
[420282251,1775907121561,-4557.9239912,0.00026,2]
[420282252,1775907121575,-218.13248165,0.00026,2]
[420282253,1775907121593,-1000.0,0.00026,26]
[420282254,1775907121605,-700.0,0.00026,7]
[420282255,1775907121620,-1048.0,0.00026,2]
[420282256,1775907121637,-474.22,0.00026023,2]
[420282257,1775907121646,-332.85,0.00026027,120]
[420282258,1775907121664,-2000.0,0.00026027,2]
[420282259,1775907121677,-500.0,0.00026099,120]
[420282260,1775907121686,-1466.37,0.00026099,2]
[420282261,1775907121702,-1444.0,0.00026137,120]
[420282262,1775907121714,-5000.0,0.00026223,15]
[420282263,1775907121725,-332.85,0.00026274,120]
[420282264,1775907121738,-1128.98485164,0.000263,2]
[420282265,1775907121755,-969.0918,0.000263,2]
[420282266,1775907121765,-2000.0,0.00026301,2]
[420282267,1775907121775,-950.0,0.00026301,2]
[420282268,1775907121793,-506.0,0.00026306,13]
[420282269,1775907121806,-369.26015737,0.00026397,30]
[420282270,1775907121815,-160.62520672,0.00026397,30]
[420282271,1775907121837,-256.43940236,0.00026397,30]
[420282272,1775907121852,-27705.41542685,0.000264,2]
[420282273,1775907121861,-420.76,0.000264,120]
[420282274,1775907121887,-2409.628,0.000264,5]
[420282275,1775907121898,-2409.628,0.000264,3]
[420282276,1775907121913,-2409.63,0.000264,3]
[420282277,1775907121937,-2176.101,0.000264,3]
[420282278,1775907121953,-2176.101,0.000264,5]
[420282279,1775907121975,-376.51,0.000264,120]
[420282280,1775907121988,-403.8507,0.000264,2]
[420282281,1775907122004,-4000.0,0.00026426,5]
[420282282,1775907122037,-332.86,0.00026521,120]
[420282283,1775907122073,-719.04747942,0.00026524,2]
[420282284,1775907122087,-314.28159982,0.00026529,60]
[420282285,1775907122131,-2000.0,0.00026575,2]
[420282286,1775907122151,-2000.0,0.00026849,2]
[420282287,1775907122177,-1050.0,0.00026849,2]
[420282288,1775907122207,-800.0,0.00026986,120]
[420282289,1775907122235,-800.0,0.00026986,120]
[420282290,1775907122260,-675.12,0.00026986,120]
[420282291,1775907122290,-800.0,0.00026986,120]
[420282292,1775907122324,-250.0,0.00027,2]
[420282293,1775907122334,-20000.0,0.00027,2]
[420282294,1775907122366,-1042.90404206,0.00027,2]
[420282295,1775907122376,-530.0,0.00027,2]
[420282296,1775907122407,-5000.0,0.00027,5]
[420282297,1775907122417,-10054.08259043,0.00027,7]
[420282298,1775907122432,-176.46795702,0.00027,2]
[420282299,1775907122450,-4600.66151878,0.00027,45]
[420282300,1775907122459,-2000.0,0.00027,2]
[420282301,1775907122469,-600.0,0.00027,2]
[420282302,1775907122478,-1048.0,0.00027,2]
[420282303,1775907122496,-2539.397873,0.0002701,2]
[420282304,1775907122505,-1638.46,0.00027068,2]
[420282305,1775907122513,-157.11065417,0.00027099,60]
[420282306,1775907122522,-2000.0,0.00027123,2]
[420282307,1775907122538,-825.0,0.00027165,60]
[420282308,1775907122547,-150.0,0.00027185,2]
[420282309,1775907122556,-678.54244685,0.000273,30]
[420282310,1775907122565,-678.54244683,0.000273,30]
[420282311,1775907122573,-1680.7,0.0002737,120]
[420282312,1775907122584,-1680.7,0.0002737,120]
[420282313,1775907122593,-341.99475401,0.0002737,120]
[420282314,1775907122602,-4145.04069276,0.0002739,2]
[420282315,1775907122611,-8188.67268528,0.0002739,2]
[420282316,1775907122620,-4470.88021783,0.0002739,7]
[420282317,1775907122636,-2000.0,0.0002739,120]
[420282318,1775907122647,-369.26015737,0.00027397,30]
[420282319,1775907122656,-240.93781008,0.00027397,30]
[420282320,1775907122667,-1375.84,0.00027397,120]
[420282321,1775907122677,-500.0,0.00027397,120]
[420282322,1775907122689,-615.52,0.00027397,120]
[420282323,1775907122699,-195.4767256,0.00027397,30]
[420282324,1775907122710,-384.65910354,0.00027397,30]
[420282325,1775907122719,-500.0,0.00027397,2]
[420282326,1775907122735,-500.0,0.00027397,2]
[420282327,1775907122743,-183.31967835,0.00027397,2]
[420282328,1775907122762,-5000.0,0.00027397,2]
[420282329,1775907122776,-328.29755608,0.00027397,2]
[420282330,1775907122787,-2000.0,0.00027397,2]
[420282331,1775907122803,-1000.0,0.00027397,120]
[420282332,1775907122819,-282.58666975,0.00027397,7]
[420282333,1775907122830,-150.0,0.00027397,7]
[420282334,1775907122844,-500.0,0.00027397,2]
[420282335,1775907122862,-500.0,0.00027397,2]
[420282336,1775907122874,-1150.0,0.00027397,5]
[420282337,1775907122890,-1000.0,0.00027397,4]
[420282338,1775907122907,-1000.0,0.00027397,4]
[420282339,1775907122918,-1000.0,0.00027397,4]
[420282340,1775907122943,-1000.0,0.00027397,4]
[420282341,1775907122958,-1000.0,0.00027397,4]
[420282342,1775907122974,-1000.0,0.00027397,4]
[420282343,1775907122988,-1000.0,0.00027397,4]
[420282344,1775907122997,-1000.0,0.00027397,4]
[420282345,1775907123011,-881.24,0.00027397,2]
[420282346,1775907123026,-1458.74,0.00027397,2]
[420282347,1775907123035,-300.0,0.00027397,2]
[420282348,1775907123047,-1000.0,0.00027397,20]
[420282349,1775907123057,-2410.358224,0.00027397,2]
[420282350,1775907123071,-151.0,0.00027397,2]
[420282351,1775907123080,-2410.358224,0.00027397,2]
[420282352,1775907123092,-151.0,0.00027397,2]
[420282353,1775907123101,-2410.358224,0.00027397,2]
[420282354,1775907123114,-151.0,0.00027397,2]
[420282355,1775907123122,-2410.358224,0.00027397,2]
[420282356,1775907123135,-151.0,0.00027397,2]
[420282357,1775907123147,-2410.358224,0.00027397,2]
[420282358,1775907123158,-151.0,0.00027397,2]
[420282359,1775907123167,-2410.358224,0.00027397,2]
[420282360,1775907123180,-151.0,0.00027397,2]
[420282361,1775907123193,-2410.358224,0.00027397,2]
[420282362,1775907123202,-151.0,0.00027397,2]
[420282363,1775907123211,-2410.358224,0.00027397,2]
[420282364,1775907123225,-151.0,0.00027397,2]
[420282365,1775907123238,-2410.358224,0.00027397,2]
[420282366,1775907123248,-151.0,0.00027397,2]
[420282367,1775907123259,-2410.358224,0.00027397,2]
[420282368,1775907123276,-151.0,0.00027397,2]
[420282369,1775907123286,-2410.358224,0.00027397,2]
[420282370,1775907123298,-151.0,0.00027397,2]
[420282371,1775907123312,-2410.358224,0.00027397,2]
[420282372,1775907123327,-151.0,0.00027397,2]
[420282373,1775907123338,-2410.358224,0.00027397,2]
[420282374,1775907123349,-151.0,0.00027397,2]
[420282375,1775907123371,-2410.358224,0.00027397,2]
[420282376,1775907123383,-298.226485,0.00027397,2]
[420282377,1775907123395,-2410.358224,0.00027397,2]
[420282378,1775907123407,-2410.358224,0.00027397,2]
[420282379,1775907123417,-2410.358224,0.00027397,2]
[420282380,1775907123429,-2410.358224,0.00027397,2]
[420282381,1775907123444,-2410.358224,0.00027397,2]
[420282382,1775907123455,-2410.358228,0.00027397,2]
[420282383,1775907123466,-151.0,0.00027397,2]
[420282384,1775907123483,-151.0,0.00027397,2]
[420282385,1775907123497,-163.200621,0.00027397,2]
[420282386,1775907123513,-200.0,0.00027397,2]
[420282387,1775907123525,-200.0,0.00027397,2]
[420282388,1775907123551,-200.0,0.00027397,2]
[420282389,1775907123562,-200.0,0.00027397,2]
[420282390,1775907123587,-200.0,0.00027397,2]
[420282391,1775907123610,-200.0,0.00027397,2]
[420282392,1775907123634,-169.140176,0.00027397,2]
[420282393,1775907123680,-200.0,0.00027397,2]
[420282394,1775907123738,-200.0,0.00027397,2]
[420282395,1775907123812,-200.0,0.00027397,2]
[420282396,1775907123912,-200.0,0.00027397,2]
[420282397,1775907124023,-200.0,0.00027397,2]
[420282398,1775907124094,-200.0,0.00027397,2]
[420282399,1775907124123,-200.0,0.00027397,2]
[420282400,1775907124142,-200.0,0.00027397,2]
[420282401,1775907124169,-200.0,0.00027397,2]
[420282402,1775907124182,-200.0,0.00027397,2]
[420282403,1775907124199,-200.0,0.00027397,2]
[420282404,1775907124220,-200.0,0.00027397,2]
[420282405,1775907124230,-200.0,0.00027397,2]
[420282406,1775907124250,-200.0,0.00027397,2]
[420282407,1775907124264,-200.0,0.00027397,2]
[420282408,1775907124275,-200.0,0.00027397,2]
[420282409,1775907124287,-200.0,0.00027397,2]
[420282410,1775907124308,-200.0,0.00027397,2]
[420282411,1775907124317,-200.0,0.00027397,2]
[420282412,1775907124331,-200.0,0.00027397,2]
[420282413,1775907124350,-200.0,0.00027397,2]
[420282414,1775907124359,-200.0,0.00027397,2]
[420282415,1775907124373,-200.0,0.00027397,2]
[420282416,1775907124390,-200.0,0.00027397,2]
[420282417,1775907124400,-200.0,0.00027397,2]
[420282418,1775907124410,-200.0,0.00027397,2]
[420282419,1775907124426,-200.0,0.00027397,2]
[420282420,1775907124440,-200.0,0.00027397,2]
[420282421,1775907124452,-200.0,0.00027397,2]
[420282422,1775907124471,-200.0,0.00027397,2]
[420282423,1775907124484,-200.0,0.00027397,2]
[420282424,1775907124503,-200.0,0.00027397,2]
[420282425,1775907124519,-200.0,0.00027397,2]
[420282426,1775907124530,-200.0,0.00027397,2]
[420282427,1775907124554,-200.0,0.00027397,2]
[420282428,1775907124573,-200.0,0.00027397,2]
[420282429,1775907124595,-200.0,0.00027397,2]
[420282430,1775907124615,-200.0,0.00027397,2]
[420282431,1775907124633,-200.0,0.00027397,2]
[420282432,1775907124656,-200.0,0.00027397,2]
[420282433,1775907124671,-200.0,0.00027397,2]
[420282434,1775907124687,-200.0,0.00027397,2]
[420282435,1775907124706,-200.0,0.00027397,2]
[420282436,1775907124716,-200.0,0.00027397,2]
[420282437,1775907124730,-200.0,0.00027397,2]
[420282438,1775907124753,-200.0,0.00027397,2]
[420282439,1775907124763,-200.0,0.00027397,2]
[420282440,1775907124779,-200.0,0.00027397,2]
[420282441,1775907124791,-200.0,0.00027397,2]
[420282442,1775907124803,-200.0,0.00027397,2]
[420282443,1775907124818,-200.0,0.00027397,2]
[420282444,1775907124828,-200.0,0.00027397,2]
[420282445,1775907124842,-200.0,0.00027397,2]
[420282446,1775907124851,-200.0,0.00027397,2]
[420282447,1775907124865,-200.0,0.00027397,2]
[420282448,1775907124876,-200.0,0.00027397,2]
[420282449,1775907124897,-200.0,0.00027397,2]
[420282450,1775907124909,-200.0,0.00027397,2]
[420282451,1775907124920,-200.0,0.00027397,2]
[420282452,1775907124946,-200.0,0.00027397,2]
[420282453,1775907124959,-200.0,0.00027397,2]
[420282454,1775907124982,-200.0,0.00027397,2]
[420282455,1775907124997,-200.0,0.00027397,2]
[420282456,1775907125007,-200.0,0.00027397,2]
[420282457,1775907125029,-200.0,0.00027397,2]
[420282458,1775907125041,-200.0,0.00027397,2]
[420282459,1775907125051,-200.0,0.00027397,2]
[420282460,1775907125082,-200.0,0.00027397,2]
[420282461,1775907125095,-200.0,0.00027397,2]
[420282462,1775907125126,-200.0,0.00027397,2]
[420282463,1775907125154,-200.0,0.00027397,2]
[420282464,1775907125187,-200.0,0.00027397,2]
[420282465,1775907125198,-200.0,0.00027397,2]
[420282466,1775907125228,-200.0,0.00027397,2]
[420282467,1775907125240,-200.0,0.00027397,2]
[420282468,1775907125265,-200.0,0.00027397,2]
[420282469,1775907125278,-200.0,0.00027397,2]
[420282470,1775907125287,-200.0,0.00027397,2]
[420282471,1775907125307,-200.0,0.00027397,2]
[420282472,1775907125318,-200.0,0.00027397,2]
[420282473,1775907125328,-200.0,0.00027397,2]
[420282474,1775907125339,-200.0,0.00027397,2]
[420282475,1775907125353,-200.0,0.00027397,2]
[420282476,1775907125362,-200.0,0.00027397,2]
[420282477,1775907125372,-200.0,0.00027397,2]
[420282478,1775907125383,-200.0,0.00027397,2]
[420282479,1775907125396,-200.0,0.00027397,2]
[420282480,1775907125406,-200.0,0.00027397,2]
[420282481,1775907125415,-200.0,0.00027397,2]
[420282482,1775907125426,-200.0,0.00027397,2]
[420282483,1775907125439,-200.0,0.00027397,2]
[420282484,1775907125448,-200.0,0.00027397,2]
[420282485,1775907125457,-200.0,0.00027397,2]
[420282486,1775907125467,-200.0,0.00027397,2]
[420282487,1775907125479,-29493.5,0.00027397,10]
[420282488,1775907125487,-523.93,0.00027397,2]
[420282489,1775907125497,-37555.06,0.00027397,10]
[420282490,1775907125506,-1570.106191,0.00027397,2]
[420282491,1775907125515,-1570.106191,0.00027397,2]
[420282492,1775907125526,-1570.106191,0.00027397,2]
[420282493,1775907125535,-1570.106191,0.00027397,2]
[420282494,1775907125544,-1570.106191,0.00027397,2]
[420282495,1775907125554,-1570.106191,0.00027397,2]
[420282496,1775907125563,-1570.106191,0.00027397,2]
[420282497,1775907125575,-1570.106191,0.00027397,2]
[420282498,1775907125584,-1570.106191,0.00027397,2]
[420282499,1775907125594,-1570.106191,0.00027397,2]
[420282500,1775907125603,-1570.106191,0.00027397,2]
[420282501,1775907125612,-1570.106191,0.00027397,2]
[420282502,1775907125622,-1570.106191,0.00027397,2]
[420282503,1775907125633,-1570.106191,0.00027397,2]
[420282504,1775907125642,-150.0,0.00027397,5]
[420282505,1775907125651,-161.36589764,0.00027397,5]
[420282506,1775907125661,-1500.0,0.00027399,21]
[420282507,1775907125670,-2600.0,0.00027399,21]
[420282508,1775907125681,-2383.51,0.000274,7]
[420282509,1775907125690,-4257.28,0.000274,7]
[420282510,1775907125699,-2234.77,0.000274,7]
[420282511,1775907125710,-435956.43,0.000274,7]
[420282512,1775907125721,-1027.65,0.000274,2]
[420282513,1775907125730,-592.0,0.000274,120]
[420282514,1775907125742,-150.0,0.000274,120]
[420282515,1775907125751,-202.96735668,0.000275,2]
[420282516,1775907125761,-9002092.00486106,0.000275,2]
[420282517,1775907128267,-5878.40577931,9.994e-05,2]
[420282518,1775907128310,-145.59422069,9.994e-05,2]
[420282519,1775907128565,-1068.789676,0.00011741,2]
[420282520,1775907128604,-61.42401717,0.00011741,2]
[420282521,1775907135781,3828.9378,8.592e-05,2]
[420282522,1775907192607,6171.0722,8.593e-05,2]
[420282523,1775907192646,10000.01,8.593e-05,2]
[420282524,1775907192677,10000.01,8.593e-05,2]
[420282525,1775907192702,10000.01,8.593e-05,2]
[420282526,1775907192737,10000.01,8.593e-05,2]
[420282527,1775907192768,10000.01,8.593e-05,2]
[420282528,1775907192803,10000.01,8.593e-05,2]
[420282529,1775907192829,10000.01,8.593e-05,2]
[420282530,1775907192866,10000.01,8.593e-05,2]
[420282531,1775907192893,10000.01,8.593e-05,2]
[420282534,1775907640266,1551.0237985,8.562e-05,2]
[420282535,1775907671100,488.01,8.562e-05,120]
[420282536,1775907671157,525.9029,8.562e-05,120]
[420282537,1775908038415,7007.0,8.562e-05,2]
[420282539,1775908188879,175.7,8e-05,2]
[420282540,1775908231882,-384.56559845,8.59e-05,2]
[420282541,1775908231895,-124.04440155,8.59e-05,2]
[420282542,1775908231937,-180.85060626,8.59e-05,2]
[420282543,1775908231954,-184.01726267,8.59e-05,2]
[420282544,1775908231978,-261.50854257,8.59e-05,2]
[420282545,1775908231990,-250.0,8.59e-05,2]